[Event "Charlotte Spring IM-C 2024"]
[Site "Charlotte"]
[Date "2024.03.31"]
[Round "7.2"]
[White "Komarov, Dimitri"]
[Black "Wu, Sibo"]
[Result "1/2-1/2"]
[ECO "B30"]
[WhiteElo "2448"]
[BlackElo "2142"]
[Annotator "RC"]
[PlyCount "51"]
[EventDate "2024.03.27"]
[EventType "tourn"]
[EventCountry "USA"]
[SourceTitle "playchess.com"]
[Source "ChessBase"]
[SourceQuality "1"]
[TimeControl "5400+30"]

1. e4 {[%emt 0:00:24]} c5 {[%emt 0:00:31]} 2. Nf3 {[%emt 0:00:06]} Nc6 {[%emt 0:00:07]} 3. Bb5 {[%emt 0:00:06]} e6 {[%emt 0:00:07]} 4. O-O {[%emt 0:00:22]} Nge7 {[%emt 0:00:20]} 5. Re1 {[%emt 0:00:09]} a6 {[%emt 0:02:05]} 6. Bxc6 {[%emt 0:00:22]} Nxc6 {[%emt 0:00:48]} 7. d4 {[%emt 0:00:06]} cxd4 {[%emt 0:11:37]} 8. Nxd4 {[%emt 0:00:07]} Qc7 {[%emt 0:01:09]} 9. Nc3 {[%emt 0:01:08]} d6 {[%emt 0:05:45]} 10. Nxc6 {[%emt 0:04:11]} bxc6 {[%emt 0:00:43]} 11. Qg4 {[%emt 0:00:35]} e5 {[%emt 0:05:29]} 12. Qg3 {[%emt 0:00:17]} h5 {[%emt 0:05:11]} 13. h4 {[%emt 0:06:07]} Be6 {[%emt 0:07:15]} 14. Be3 {[%emt 0:06:05]} Be7 {[%emt 0:03:53]} 15. Rad1 {[%emt 0:06:38]} Kf8 {[%emt 0:03:10]} 16. Na4 {[%emt 0:08:57]} Rb8 {[%emt 0:08:56]} 17. b3 {[%emt 0:00:27]} Kg8 {[%emt 0:03:51]} 18. c4 {[%emt 0:01:16]} Rf8 {[%emt 0:02:08]} 19. Nc3 {[%emt 0:08:57]} Qa5 {[%emt 0:09:33]} 20. Na4 {[%emt 0:20:25]} Qc7 {[%emt 0:00:44]} 21. Bg5 {[%emt 0:05:18]} f6 {[%emt 0:02:08]} 22. Bc1 {[%emt 0:00:08]} f5 {[%emt 0:03:20]} 23. exf5 {[%emt 0:01:07]} Rxf5 {[%emt 0:03:21]} 24. Qg6 {[%emt 0:07:15]} Rf6 {[%emt 0:00:23]} 25. Qg3 {[%emt 0:00:20]} Rf5 {[%emt 0:01:08]} 26. Qg6 {[%emt 0:01:28]} 1/2-1/2

[Event "Charlotte Spring IM-C 2024"]
[Site "Charlotte"]
[Date "2024.03.31"]
[Round "7.3"]
[White "Posthuma, Joshua"]
[Black "Nguyen, James Le"]
[Result "1-0"]
[ECO "D00"]
[WhiteElo "2449"]
[BlackElo "2114"]
[Annotator "TA"]
[PlyCount "111"]
[EventDate "2024.03.27"]
[EventType "tourn"]
[EventCountry "USA"]
[SourceTitle "playchess.com"]
[Source "ChessBase"]
[SourceQuality "1"]
[TimeControl "5400+30"]

{[%evp 30,111,0,-106,-42,-46,-4,-15,-16,-24,-15,-45,-43,-58,-4,-25,-19,-13,0,0,0,0,2,8,25,-25,0,-32,0,0,0,0,0,0,0,0,0,0,0,-315,-298,-314,-259,-420,-65,-62,0,0,0,0,65,55,66,0,0,-244,-33,-31,0,0,215,198,800,792,1512,792,792,792,792,792,790,790,788,788,776,768,768,735,735,735,734,734,734,727]} 1. d4 {[%emt 1:31:00]} d5 {[%emt 0:02:39]} 2. Bf4 {[%emt 0:00:00]} c5 {[%emt 0:00:20]} 3. Nc3 {[%emt 0:00:00]} Nf6 {[%emt 0:02:15]} 4. e4 {[%emt 0:00:00]} dxe4 {[%emt 0:01:57]} 5. dxc5 {[%emt 0:00:00]} Bd7 {[%emt 0:11:31]} 6. Qd2 {[%emt 0:00:00]} Nc6 {[%emt 0:05:48]} 7. O-O-O {[%emt 0:00:00]} e5 {[%emt 0:01:29]} 8. Bg5 {[%emt 0:00:00]} Bxc5 {[%emt 0:02:10]} 9. Bxf6 {[%emt 0:00:00]} gxf6 {[%emt 0:00:08]} 10. Nxe4 {[%emt 0:00:00]} Be7 {[%emt 0:01:31]} 11. Nf3 {[%emt 0:00:00]} Qc7 {[%emt 0:05:32]} 12. Bb5 {[%emt 0:00:00]} O-O-O {[%emt 0:01:29]} 13. Nd6+ {[%emt 0:00:00]} Bxd6 {[%emt 0:00:08]} 14. Qxd6 {[%emt 0:00:00]} Be6 {[%emt 0:09:07]} 15. Qa3 {[%emt 0:00:00]} a6 {[%emt 0:04:07]} 16. Bd3 {[%emt 0:00:00] [#]} (16. Bxc6 $11 {remains equal.} Qxc6 17. Rxd8+ Rxd8 18. Rd1) 16... f5 {[%emt 0:48:19]} (16... Kb8 $1 $17 17. Be4 Na5) 17. Ng5 $15 {[%emt 0:00:00]} e4 {[%emt 0:00:00]} 18. Nxe6 $1 {[%emt 0:00:00]} fxe6 {[%emt 0:00:00]} 19. Bc4 {[%emt 0:00:00]} Nd4 {[%emt 0:00:00]} 20. Qc3 {[%emt 0:00:00]} e5 {[%emt 0:00:00]} 21. Rhe1 {[%emt 0:00:00]} Kb8 {[%emt 0:00:00]} (21... Rd6 $15 22. Bb3 Rg6) 22. Bb3 {[%emt 0:00:00]} Qd7 {[%emt 0:00:00]} (22... Rd6 {simplifies} 23. Qxc7+ Kxc7 24. c3 Nxb3+ 25. axb3 Rg8) 23. Qe3 {[%emt 0:00:00]} Qb5 {[%emt 0:00:00]} 24. Kb1 {[%emt 0:00:00]} a5 {[%emt 0:00:00]} 25. Bf7 {[%emt 0:00:00]} a4 {[%emt 0:00:00]} 26. c3 {[%emt 0:00:00]} Nc6 {[%emt 0:00:00]} 27. Qg5 {[%emt 0:00:00]} (27. c4 $142 Rxd1+ 28. Rxd1) 27... f4 {[%emt 0:00:00]} 28. a3 {[%emt 0:03:00]} Rxd1+ {[%emt 0:00:00]} 29. Rxd1 {[%emt 0:00:04]} Qe2 {[%emt 0:00:00]} 30. Rd7 {[%emt 0:01:25]} Qxf2 {[%emt 0:00:00]} 31. Bd5 {[%emt 0:00:26]} Qf1+ $1 {[%emt 0:00:31]} 32. Ka2 {[%emt 0:00:18]} Qb5 $1 {[%emt 0:01:35]} 33. Qg7 {[%emt 0:07:15]} (33. Bxe4 $2 Qc4+ 34. Ka1 Qxe4 $19) 33... Rc8 {[%emt 0:01:10]} 34. Qxh7 $2 {[%emt 0:01:27][%mdl 8192]} (34. c4 $11 Qa6 (34... Qb3+ 35. Ka1 $11) 35. Bxc6 Qxc6 (35... Qxc4+ 36. Ka1 $11) 36. Qxe5+ Ka8 37. Rd4) 34... e3 $19 {[%emt 0:00:53]} 35. Qe4 {[%emt 0:01:28]} e2 {[%emt 0:01:46]} 36. Be6 $2 {[%emt 0:00:43]} (36. Kb1 {was the only defense.} Na5 37. Re7 (37. Qxe5+ $2 Ka7 $19) 37... Qxd5 (37... Rxc3 $2 38. Qxe5+ Ka7 39. Qxe2 $18) 38. Qxe5+ Qxe5 39. Rxe5) 36... Rd8 $2 {[%emt 0:01:53]} (36... Na5 $19 {And now ...Re8 would win.} 37. Bg4 f3 38. Bxf3 Qxd7 39. Qxe5+ Qc7) 37. Ka1 $1 $15 {[%emt 0:00:49]} Re8 {[%emt 0:01:13]} (37... Rh8 $1 $15 38. h3 (38. Bg4 $2 Na5 $19) 38... Na5) 38. Bg4 $1 $11 {[%emt 0:00:18]} Na5 {[%emt 0:00:51]} 39. Qxe2 {[%emt 0:00:25]} (39. Bxe2 $2 Nb3+ (39... Qxd7 $2 40. Bh5 $19) 40. Ka2 Qxd7 $19) 39... Nc4 {[%emt 0:00:53]} ({Black should try} 39... Qxe2 $11 40. Bxe2 e4) 40. Rd1 {[%emt 0:00:55]} (40. h3 $5) 40... Qb3 {[%emt 0:00:30]} 41. Bf3 {[%emt 0:00:49]} (41. Bh5 $14 Re7 (41... Rh8 $2 42. Bf7 $18) 42. g3) 41... e4 $11 {[%emt 0:00:25]} 42. Bh5 $2 {[%emt 0:00:34] [#]} (42. Bxe4 Rxe4 43. Rd8+ Kc7) (42. Rd4 $11 {and White stays safe.} exf3 (42... Nxb2 $2 43. Rxe4 Rxe4 44. Qxe4 $18) 43. Qxe8+ Ka7 44. Rxc4 (44. gxf3 $2 Qxb2#) 44... Qd1+ 45. Ka2 Qb3+ 46. Kb1 Qd1+ 47. Ka2 Qb3+ 48. Ka1 Qd1+ 49. Ka2) 42... Re7 $2 {[%emt 0:00:40]} ({Better is} 42... Rg8 $1 $19 {[%cal Of4f3] ...f3! would now be deadly.} 43. Rc1 (43. Rd4 $2 f3 $19) 43... Rg7) 43. Rd4 {[%emt 0:00:26]} Ne3 {[%emt 0:00:16]} 44. Kb1 {[%emt 0:00:16]} Rg7 $2 {[%emt 0:00:41]} (44... Nd5 $11 {and Black has nothing to worry.} 45. Kc1 Nxc3) 45. g3 $1 $18 {[%emt 0:00:31]} (45. Rxe4 $2 {perishes.} Rxg2 $19) 45... fxg3 $2 {[%emt 0:00:18]} (45... Rg5) 46. Qxe3 $18 {[%emt 0:00:41]} gxh2 {[%emt 0:00:21]} 47. Rd8+ {[%emt 0:00:30]} (47. Qxe4 Rg1+) 47... Kc7 {[%emt 0:00:01]} 48. Qc5+ {[%emt 0:00:11]} Kxd8 {[%emt 0:00:03]} 49. Qf8+ {[%emt 0:00:03]} Kc7 {[%emt 0:02:30]} 50. Qxg7+ {[%emt 0:00:05]} Kb6 {[%emt 0:00:00]} 51. Qg2 {[%emt 0:00:15]} Qb5 {[%emt 0:00:11]} 52. Qxh2 {[%emt 0:00:17]} Qf1+ {[%emt 0:00:04]} 53. Kc2 {[%emt 0:00:16]} Qd3+ {[%emt 0:00:07]} 54. Kc1 {[%emt 0:00:05]} Qf1+ {[%emt 0:00:59]} 55. Bd1 {[%emt 0:00:15]} Qd3 {[%emt 0:00:28]} 56. Qe2 {[%emt 0:03:43]} 1-0

[Event "Charlotte Spring IM-C 2024"]
[Site "Charlotte"]
[Date "2024.03.31"]
[Round "7.4"]
[White "Fierro Baquero, Martha L."]
[Black "Kunka, Harshid"]
[Result "1-0"]
[ECO "A14"]
[WhiteElo "2283"]
[BlackElo "2294"]
[Annotator "RC"]
[PlyCount "105"]
[EventDate "2024.03.27"]
[EventType "tourn"]
[EventCountry "USA"]
[SourceTitle "playchess.com"]
[Source "ChessBase"]
[SourceQuality "1"]
[TimeControl "5400+30"]

1. c4 {[%emt 0:04:26]} e6 {[%emt 0:00:08]} 2. g3 {[%emt 0:00:29]} d5 {[%emt 0:00:07]} 3. Bg2 {[%emt 0:00:13]} Nf6 {[%emt 0:00:07]} 4. Nf3 {[%emt 0:00:22]} Be7 {[%emt 0:00:09]} 5. O-O {[%emt 0:00:09]} O-O {[%emt 0:00:05]} 6. b3 {[%emt 0:01:54]} b6 {[%emt 0:00:28]} 7. Bb2 {[%emt 0:02:31]} Bb7 {[%emt 0:00:14]} 8. e3 {[%emt 0:01:16]} dxc4 {[%emt 0:04:41]} 9. bxc4 {[%emt 0:00:05]} c5 {[%emt 0:00:08]} 10. Nc3 {[%emt 0:04:38]} Nc6 {[%emt 0:00:20]} 11. Qe2 {[%emt 0:02:26]} a6 {[%emt 0:12:40]} 12. Rfd1 {[%emt 0:05:55]} Qc7 {[%emt 0:00:29]} 13. Rac1 {[%emt 0:06:35]} Na5 {[%emt 0:02:21]} 14. d3 {[%emt 0:07:55]} Rfd8 {[%emt 0:02:39]} 15. e4 {[%emt 0:06:36]} Nd7 {[%emt 0:06:25]} 16. e5 {[%emt 0:04:44]} Bxf3 {[%emt 0:07:13]} 17. Bxf3 {[%emt 0:00:37]} Rac8 {[%emt 0:00:09]} 18. Re1 {[%emt 0:08:17]} Nb8 {[%emt 0:01:26]} 19. Be4 {[%emt 0:04:47]} Nac6 {[%emt 0:02:04]} 20. Nd5 {[%emt 0:00:46]} exd5 {[%emt 0:06:49]} 21. cxd5 {[%emt 0:00:05]} Nb4 {[%emt 0:05:56]} 22. d6 {[%emt 0:01:59]} Qd7 {[%emt 0:14:53]} 23. dxe7 {[%emt 0:00:06]} Qxe7 {[%emt 0:00:03]} 24. Qg4 {[%emt 0:17:15]} Nd7 {[%emt 0:13:16]} 25. e6 {[%emt 0:04:45]} Nf6 {[%emt 0:01:46]} 26. Qh4 {[%emt 0:00:33]} fxe6 {[%emt 0:02:37]} 27. Bxh7+ {[%emt 0:01:33]} Kf7 {[%emt 0:00:12]} 28. Bf5 {[%emt 0:04:54]} Rc6 {[%emt 0:00:47]} 29. Qg5 {[%emt 0:00:51]} Rh8 {[%emt 0:01:41]} 30. Re2 {[%emt 0:02:11]} Nbd5 {[%emt 0:03:04]} 31. Rce1 {[%emt 0:00:46]} Nc7 {[%emt 0:00:53]} 32. Be5 {[%emt 0:02:43]} Nfe8 {[%emt 0:03:54]} 33. Qg6+ {[%emt 0:01:09]} Kf8 {[%emt 0:00:27]} 34. Be4 {[%emt 0:00:22]} Rd6 {[%emt 0:00:29]} 35. Bxd6 {[%emt 0:01:01]} Nxd6 {[%emt 0:00:03]} 36. Qg4 {[%emt 0:01:27]} Rh6 {[%emt 0:00:12]} 37. Re3 {[%emt 0:00:33]} Kg8 {[%emt 0:01:16]} 38. h4 {[%emt 0:00:23]} Rf6 {[%emt 0:00:47]} 39. Bg6 {[%emt 0:00:38]} Nf7 {[%emt 0:00:40]} 40. Rf3 {[%emt 0:00:42]} Nh6 {[%emt 0:00:29]} 41. Qg5 {[%emt 0:00:52]} Qf8 {[%emt 0:02:26]} 42. Rxf6 {[%emt 0:00:20]} gxf6 {[%emt 0:00:05]} 43. Qf4 {[%emt 0:00:31]} e5 {[%emt 0:01:36]} 44. Qe4 {[%emt 0:00:58]} Qd6 {[%emt 0:00:05]} 45. Qb7 {[%emt 0:00:24]} Kg7 {[%emt 0:00:39]} 46. h5 {[%emt 0:00:25]} Ng8 {[%emt 0:00:30]} 47. a4 {[%emt 0:00:38]} Ne7 {[%emt 0:00:17]} 48. Rb1 {[%emt 0:00:27]} b5 {[%emt 0:00:55]} 49. axb5 {[%emt 0:00:20]} axb5 {[%emt 0:00:06]} 50. Ra1 {[%emt 0:00:14]} Kh6 {[%emt 0:03:37]} 51. Ra7 {[%emt 0:00:32]} Ned5 {[%emt 0:00:12]} 52. Be4 {[%emt 0:00:40]} Kxh5 {[%emt 0:01:02]} 53. Bxd5 {[%emt 0:00:05]} 1-0

[Event "Charlotte Spring IM-C 2024"]
[Site "Charlotte"]
[Date "2024.03.31"]
[Round "7.5"]
[White "Mendez Tovar, Yessica Yissel"]
[Black "Horobetz, Graham"]
[Result "0-1"]
[ECO "B88"]
[WhiteElo "1993"]
[BlackElo "2252"]
[Annotator "RC"]
[PlyCount "68"]
[EventDate "2024.03.27"]
[EventType "tourn"]
[EventCountry "USA"]
[SourceTitle "playchess.com"]
[Source "ChessBase"]
[SourceQuality "1"]
[TimeControl "5400+30"]

1. e4 {[%emt 0:00:10]} c5 {[%emt 0:00:43]} 2. Nf3 {[%emt 0:00:12]} d6 {[%emt 0:00:07]} 3. Nc3 {[%emt 0:00:41]} Nf6 {[%emt 0:00:28]} 4. Bc4 {[%emt 0:00:15]} a6 {[%emt 0:01:12]} 5. a4 {[%emt 0:05:35]} Nc6 {[%emt 0:00:06]} 6. d4 {[%emt 0:05:02]} cxd4 {[%emt 0:00:07]} 7. Nxd4 {[%emt 1:22:05]} e6 {[%emt 0:03:07]} 8. O-O Be7 {[%emt 0:05:24]} 9. Be3 O-O {[%emt 0:03:33]} 10. Re1 Qc7 {[%emt 1:20:43]} 11. Bf1 {[%emt 0:00:00]} Rd8 {[%emt 0:00:00]} 12. Qe2 {[%emt 0:00:00]} Nxd4 {[%emt 0:00:00]} 13. Bxd4 {[%emt 0:00:00]} e5 {[%emt 0:00:00]} 14. Be3 {[%emt 0:00:00]} Be6 {[%emt 0:00:00]} 15. a5 {[%emt 0:00:00]} Qc6 {[%emt 0:00:00]} 16. f3 {[%emt 0:00:00]} d5 {[%emt 0:00:00]} 17. exd5 {[%emt 0:00:00]} Nxd5 {[%emt 0:00:00]} 18. Nxd5 {[%emt 0:00:00]} Rxd5 {[%emt 0:00:00]} 19. c4 {[%emt 0:00:00]} Rd7 {[%emt 0:00:00]} 20. Kh1 {[%emt 0:00:00]} Rc8 {[%emt 0:00:00]} 21. b3 {[%emt 0:00:00]} Bb4 {[%emt 0:00:00]} 22. Red1 {[%emt 0:00:00]} Rxd1 {[%emt 0:00:00]} 23. Qxd1 {[%emt 0:00:00]} e4 {[%emt 0:00:00]} 24. Be2 {[%emt 0:00:00]} Bc3 {[%emt 0:00:00]} 25. Ra2 {[%emt 0:00:00]} Bf5 {[%emt 0:00:00]} 26. Qc1 {[%emt 0:00:00]} Bb4 {[%emt 0:00:00]} 27. Bd2 {[%emt 0:00:00]} Bf8 {[%emt 0:08:30]} 28. Bc3 {[%emt 0:00:00]} Re8 {[%emt 0:00:00]} 29. Qg5 {[%emt 0:00:00]} Bg6 {[%emt 0:00:00]} 30. Ra1 {[%emt 0:02:16]} h6 {[%emt 0:00:00]} 31. Qd5 {[%emt 0:01:44]} Qxd5 {[%emt 0:00:00]} 32. cxd5 {[%emt 0:00:02]} exf3 {[%emt 0:00:00]} 33. Bxf3 {[%emt 0:00:19]} Re3 {[%emt 0:00:00]} 34. Rc1 {[%emt 0:00:34]} Ba3 {[%emt 0:00:00]} 0-1

[Event "Charlotte Spring IM-C 2024"]
[Site "Charlotte"]
[Date "2024.03.31"]
[Round "8.1"]
[White "Eckert, Doug"]
[Black "Horobetz, Graham"]
[Result "1/2-1/2"]
[ECO "A37"]
[WhiteElo "2146"]
[BlackElo "2252"]
[Annotator "ChessBase"]
[PlyCount "79"]
[EventDate "2024.03.27"]
[EventType "tourn"]
[EventCountry "USA"]
[SourceTitle "playchess.com"]
[Source "ChessBase"]
[SourceQuality "1"]
[TimeControl "5400+30"]

1. c4 {[%emt 0:03:48]} c5 {[%emt 0:00:07]} 2. Nf3 {[%emt 0:00:22]} Nc6 {[%emt 0:00:38]} 3. g3 {[%emt 0:00:09]} g6 {[%emt 0:00:09]} 4. Bg2 {[%emt 0:00:07]} Bg7 {[%emt 0:00:11]} 5. Nc3 {[%emt 0:00:06]} e5 {[%emt 0:00:16]} 6. a3 {[%emt 0:00:27]} Nge7 {[%emt 0:00:14]} 7. d3 {[%emt 0:00:42]} d6 {[%emt 0:00:36]} 8. O-O {[%emt 0:01:16]} O-O {[%emt 0:00:06]} 9. Rb1 {[%emt 0:00:42]} a5 {[%emt 0:01:40]} 10. Bg5 {[%emt 0:08:20]} f6 {[%emt 0:04:07]} 11. Be3 {[%emt 0:01:30]} Rb8 {[%emt 0:17:47]} 12. Ne1 {[%emt 0:00:21]} Be6 {[%emt 0:07:23]} 13. Nc2 {[%emt 0:01:34]} Qd7 {[%emt 0:03:49]} 14. b4 {[%emt 0:01:09]} axb4 {[%emt 0:03:25]} 15. axb4 {[%emt 0:00:06]} b6 {[%emt 0:00:31]} 16. Re1 {[%emt 0:09:21]} Nd4 {[%emt 0:02:34]} 17. Bd2 {[%emt 0:08:18]} Rfc8 {[%emt 0:11:22]} 18. Ne3 {[%emt 0:01:40]} cxb4 {[%emt 0:10:47]} 19. Rxb4 {[%emt 0:00:34]} b5 {[%emt 0:10:47]} 20. Qb1 {[%emt 0:13:26]} Nec6 {[%emt 0:09:26]} 21. Bxc6 {[%emt 0:00:32]} Qxc6 {[%emt 0:02:08]} 22. Nxb5 {[%emt 0:02:03]} Nxb5 {[%emt 0:01:08]} 23. Rxb5 {[%emt 0:00:22]} Rxb5 {[%emt 0:00:44]} 24. Qxb5 {[%emt 0:01:37]} Qxb5 {[%emt 0:00:34]} 25. cxb5 {[%emt 0:00:05]} Rb8 {[%emt 0:00:18]} 26. Rb1 {[%emt 0:00:15]} Bh6 {[%emt 0:01:15]} 27. Ba5 {[%emt 0:03:12]} Bxe3 {[%emt 0:01:02]} 28. fxe3 {[%emt 0:00:10]} Rb7 {[%emt 0:01:23]} 29. Bd8 {[%emt 0:00:48]} Rd7 {[%emt 0:02:42]} 30. Bxf6 {[%emt 0:02:39]} h6 {[%emt 0:00:18]} 31. d4 {[%emt 0:04:19]} Bf5 {[%emt 0:02:38]} 32. Ra1 {[%emt 0:03:06]} Kf7 {[%emt 0:00:38]} 33. dxe5 {[%emt 0:00:05]} dxe5 {[%emt 0:00:35]} 34. Bxe5 {[%emt 0:00:22]} Rd5 {[%emt 0:00:19]} 35. Ra7+ {[%emt 0:09:35]} Ke6 {[%emt 0:00:25]} 36. Bg7 {[%emt 0:01:37]} Rxb5 {[%emt 0:01:31]} 37. Bxh6 {[%emt 0:00:18]} Rb2 {[%emt 0:01:36]} 38. Ra6+ {[%emt 0:01:24]} Kd5 {[%emt 0:00:22]} 39. Ra5+ {[%emt 0:01:46]} Ke6 {[%emt 0:00:49]} 40. Ra6+ {[%emt 0:03:35]} 1/2-1/2

[Event "Charlotte Spring IM-C 2024"]
[Site "Charlotte"]
[Date "2024.03.31"]
[Round "8.2"]
[White "Kunka, Harshid"]
[Black "Mendez Tovar, Yessica Yissel"]
[Result "1-0"]
[ECO "A82"]
[WhiteElo "2294"]
[BlackElo "1993"]
[Annotator "ChessBase"]
[PlyCount "69"]
[EventDate "2024.03.27"]
[EventType "tourn"]
[EventCountry "USA"]
[SourceTitle "playchess.com"]
[Source "ChessBase"]
[SourceQuality "1"]
[TimeControl "5400+30"]

1. e4 {[%emt 0:00:03]} d6 {[%emt 0:02:28]} 2. d4 {[%emt 0:00:19]} f5 {[%emt 0:00:40]} 3. Nc3 {[%emt 0:02:40]} fxe4 {[%emt 0:00:12]} 4. Nxe4 {[%emt 0:00:07]} Nf6 {[%emt 0:00:06]} 5. Bd3 {[%emt 0:00:57]} Nc6 {[%emt 1:29:34]} 6. Nxf6+ {[%emt 0:03:06]} exf6 {[%emt 0:00:00]} 7. c3 {[%emt 0:03:21]} Be6 {[%emt 0:00:00]} 8. Ne2 {[%emt 0:00:38]} Be7 {[%emt 0:00:00]} 9. Qc2 {[%emt 0:02:36]} g6 {[%emt 0:00:00]} 10. h4 {[%emt 0:00:14]} Qd7 {[%emt 0:00:00]} 11. Nf4 {[%emt 0:01:14]} Bf7 {[%emt 0:00:00]} 12. Bd2 {[%emt 0:00:38]} O-O-O {[%emt 0:00:00]} 13. O-O-O {[%emt 0:00:21]} Kb8 {[%emt 0:00:00]} 14. h5 {[%emt 0:02:24]} f5 {[%emt 0:00:00]} 15. Rhg1 {[%emt 0:02:24]} Rdf8 {[%emt 0:00:00]} 16. f3 {[%emt 0:00:39]} Bg5 {[%emt 0:00:00]} 17. Kb1 {[%emt 0:03:42]} gxh5 {[%emt 0:00:00]} 18. Ka1 {[%emt 0:00:38]} Ne7 {[%emt 0:06:30]} 19. Rde1 {[%emt 0:01:32]} Rhg8 {[%emt 0:00:00]} 20. Re2 {[%emt 0:01:35]} Bxf4 {[%emt 0:00:00]} 21. Bxf4 {[%emt 0:00:17]} Ng6 {[%emt 0:00:00]} 22. Bh6 {[%emt 0:04:52]} Re8 {[%emt 0:00:00]} 23. Rxe8+ {[%emt 0:00:17]} Rxe8 {[%emt 0:00:00]} 24. Bxf5 {[%emt 0:00:39]} Qb5 {[%emt 0:00:00]} 25. Be4 {[%emt 0:01:33]} h4 {[%emt 0:00:00]} 26. Bc1 {[%emt 0:00:15]} Qa6 {[%emt 0:00:00]} 27. b3 {[%emt 0:00:17]} c5 {[%emt 0:00:00]} 28. dxc5 {[%emt 0:00:55]} dxc5 {[%emt 0:00:00]} 29. c4 {[%emt 0:00:16]} Qf6+ {[%emt 0:00:00]} 30. Bb2 {[%emt 0:00:07]} Qg5 {[%emt 0:00:00]} 31. Rd1 {[%emt 0:01:12]} Be6 {[%emt 0:00:36]} 32. Qd3 {[%emt 0:02:12]} h3 {[%emt 0:02:18]} 33. Qd6+ {[%emt 0:01:20]} Ka8 {[%emt 0:00:01]} 34. Qc7 {[%emt 0:01:01]} Bc8 {[%emt 0:01:18]} 35. Rd7 {[%emt 0:00:35]} 1-0

[Event "Charlotte Spring IM-C 2024"]
[Site "Charlotte"]
[Date "2024.03.31"]
[Round "8.3"]
[White "Nguyen, James Le"]
[Black "Fierro Baquero, Martha L."]
[Result "1-0"]
[ECO "B08"]
[WhiteElo "2114"]
[BlackElo "2283"]
[Annotator "RC"]
[PlyCount "117"]
[EventDate "2024.03.27"]
[EventType "tourn"]
[EventCountry "USA"]
[SourceTitle "playchess.com"]
[Source "ChessBase"]
[SourceQuality "1"]
[TimeControl "5400+30"]

1. e4 {[%emt 0:04:48]} g6 {[%emt 0:00:58]} 2. d4 {[%emt 0:00:08]} Bg7 {[%emt 0:00:04]} 3. Nc3 {[%emt 0:00:08]} c6 {[%emt 0:00:06]} 4. h3 {[%emt 0:00:31]} d6 {[%emt 0:07:34]} 5. Nf3 {[%emt 0:00:51]} Nf6 {[%emt 0:00:13]} 6. a4 {[%emt 0:01:03]} O-O {[%emt 0:00:06]} 7. a5 {[%emt 0:01:50]} Nbd7 {[%emt 0:02:00]} 8. Bd3 {[%emt 0:05:49]} e5 {[%emt 0:06:09]} 9. dxe5 {[%emt 0:00:23]} dxe5 {[%emt 0:02:43]} 10. O-O {[%emt 0:03:58]} Qe7 {[%emt 0:03:04]} 11. Bc4 {[%emt 0:03:51]} Nc5 {[%emt 0:04:21]} 12. Qe2 {[%emt 0:02:15]} Nh5 {[%emt 0:02:11]} 13. Bg5 {[%emt 0:02:26]} Bf6 {[%emt 0:00:05]} 14. Qe3 {[%emt 0:05:17]} Ne6 {[%emt 0:02:14]} 15. Bxe6 {[%emt 0:03:43]} Bxe6 {[%emt 0:00:50]} 16. Bxf6 {[%emt 0:01:26]} Qxf6 {[%emt 0:01:27]} 17. Qc5 {[%emt 0:06:11]} Nf4 {[%emt 0:10:32]} 18. Qxe5 {[%emt 0:01:41]} Nxh3+ {[%emt 0:01:57]} 19. Kh2 {[%emt 0:00:57]} Qf4+ {[%emt 0:01:51]} 20. Qxf4 {[%emt 0:01:23]} Nxf4 {[%emt 0:00:05]} 21. Rfd1 {[%emt 0:06:19]} Bg4 {[%emt 0:07:27]} 22. a6 {[%emt 0:02:06]} Bxf3 {[%emt 0:10:57]} 23. gxf3 {[%emt 0:01:24]} b5 {[%emt 0:06:34]} 24. Rd6 {[%emt 0:06:33]} Rfc8 {[%emt 0:01:11]} 25. e5 {[%emt 0:00:32]} Kg7 {[%emt 0:07:27]} 26. Rd7 {[%emt 0:02:59]} Re8 {[%emt 0:05:28]} 27. Re1 {[%emt 0:04:25]} Re6 {[%emt 0:00:44]} 28. Kg3 {[%emt 0:03:56]} g5 {[%emt 0:02:05]} 29. Ne4 {[%emt 0:01:56]} Rxe5 {[%emt 0:03:02]} 30. Red1 {[%emt 0:00:46]} Kg6 {[%emt 0:07:45]} 31. R1d6+ {[%emt 0:00:49]} Re6 {[%emt 0:00:07]} 32. Nc5 {[%emt 0:01:51]} Rxd6 {[%emt 0:01:28]} 33. Rxd6+ {[%emt 0:00:15]} Kg7 {[%emt 0:00:41]} 34. Rxc6 {[%emt 0:00:24]} Rd8 {[%emt 0:00:02]} 35. Rc7 {[%emt 0:07:01]} Rd1 {[%emt 0:00:56]} 36. Rxa7 {[%emt 0:01:27]} Rh1 {[%emt 0:00:58]} 37. Nd3 {[%emt 0:03:49]} Nxd3 {[%emt 0:02:30]} 38. cxd3 {[%emt 0:00:00]} Rg1+ {[%emt 0:00:05]} 39. Kh2 {[%emt 0:00:08]} Rb1 {[%emt 0:00:26]} 40. Kg3 {[%emt 0:05:38]} Rxb2 {[%emt 0:00:42]} 41. Rb7 {[%emt 0:00:13]} Ra2 {[%emt 0:00:07]} 42. Rxb5 {[%emt 0:01:35]} Rxa6 {[%emt 0:00:47]} 43. Rxg5+ {[%emt 0:00:02]} Kf6 {[%emt 0:02:01]} 44. Rd5 {[%emt 0:00:18]} Ke6 {[%emt 0:00:00]} 45. Rd8 {[%emt 0:00:40]} Rd6 {[%emt 0:00:01]} 46. Rxd6+ {[%emt 0:02:25]} Kxd6 {[%emt 0:00:03]} 47. Kg4 {[%emt 0:02:25]} Ke5 {[%emt 0:00:34]} 48. Kg5 {[%emt 0:01:41]} Kd4 {[%emt 0:01:52]} 49. Kh6 {[%emt 0:00:21]} Kxd3 {[%emt 0:00:00]} 50. Kxh7 {[%emt 0:00:19]} Kd4 {[%emt 0:00:19]} 51. Kh6 {[%emt 0:00:54]} Ke5 {[%emt 0:00:36]} 52. Kg5 {[%emt 0:00:06]} Ke6 {[%emt 0:00:31]} 53. f4 {[%emt 0:01:32]} Ke7 {[%emt 0:00:08]} 54. Kf5 {[%emt 0:01:32]} Ke8 {[%emt 0:00:36]} 55. Kf6 {[%emt 0:00:24]} Kf8 {[%emt 0:00:03]} 56. f5 {[%emt 0:00:16]} Kg8 {[%emt 0:00:04]} 57. Ke7 {[%emt 0:00:53]} Kg7 {[%emt 0:00:34]} 58. f6+ {[%emt 0:00:22]} Kg6 {[%emt 0:00:05]} 59. f3 {[%emt 0:00:10]} 1-0